{"text_format":"1","workbook":"xlsx","n_sheets":2,"sheets":["الشيت","كشف ناجح"],"not_rendered":{"charts":0,"images":0,"macros":1,"external_links":9,"defined_names":75,"comments":0,"pivot_tables":0},"unopened":[],"bounds":{"document_bytes":16777216,"sheet_cells":100000,"rows_first":2000,"rows_last":500,"rows_between":2000,"halvings":0,"cell_chars":16384,"cell_head_chars":4096},"cells_cut":0,"cells_raw":0,"read":"whole","date_system":"1900"}

{"sheet":"الشيت","index":0,"n_rows":26,"n_cols":116,"rows_kept":26,"cut":false,"hidden":false,"merged":[[2,30,2,38],[2,40,2,45],[2,47,2,58],[6,106,7,106],[6,101,7,101],[5,91,5,99],[5,100,5,108],[4,66,5,68],[4,69,5,71],[6,68,7,68],[4,72,7,72],[4,73,4,111],[6,107,7,107],[6,108,7,108],[6,66,7,66],[6,67,7,67],[6,69,7,69],[6,70,7,70],[6,71,7,71],[4,14,9,14],[4,15,9,15],[4,16,6,16],[4,17,4,63],[9,58,9,59],[6,102,7,102],[6,103,7,103],[6,104,7,104],[6,105,7,105],[6,82,6,90],[6,91,6,99],[6,100,7,100],[4,112,9,113],[5,17,6,25],[5,26,6,34],[5,35,6,43],[5,44,6,52],[5,53,5,63],[5,73,6,81],[5,82,5,90],[4,64,7,64],[4,65,9,65],[5,109,7,109],[6,53,6,56],[6,57,6,60],[6,61,7,61],[6,62,7,62],[6,63,7,63],[4,9,7,11],[4,12,9,12],[4,13,9,13],[4,7,9,7],[4,4,9,4],[4,5,9,6],[8,9,8,11],[4,0,9,0],[4,1,9,1],[4,2,9,2],[4,3,9,3],[4,8,9,8]]}
[null,null,null,null,null,null,null,null,null,null,null,null,null,null,null,null,null,null,null,null,null,null,null,null,null,null,null,null,null,null,null,null,null,null,null,null,null,null,null,null,null,null,null,null,null,"عدد الطلبة",{"$f":"COUNTA(الشيت!A6:A994)","v":15}]
[null,null,"الأستاذ محمدي عبد السميع عبد الغني"]
[null,null,"2012-05-05",null,null,null,null,null,null,null,null,null,null,null,null,null,null,null,0,0,null,null,null,null,null,null,null,null,null,null,"كشف رصد درجات ",null,null,null,null,null,null,null,null,null,"الصف الرابع الإبتدائى",null,null,null,null,null,null,"بمرحلة التعليم الأساسى للعام الدراسى ",null,null,null,null,null,null,null,null,null,null,null,null,null," 2009 / 2010",null,null,null,null,"/ الدور الأول"]
[null,"مدرسة",null,null,null,{"$f":"COLUMN()","v":6},{"$f":"COLUMN()","v":7},{"$f":"COLUMN()","v":8},{"$f":"COLUMN()","v":9},{"$f":"COLUMN()","v":10},{"$f":"COLUMN()","v":11},{"$f":"COLUMN()","v":12},{"$f":"COLUMN()","v":13},{"$f":"COLUMN()","v":14},{"$f":"COLUMN()","v":15},{"$f":"COLUMN()","v":16},{"$f":"COLUMN()","v":17},{"$f":"COLUMN()","v":18},{"$f":"COLUMN()","v":19},{"$f":"COLUMN()","v":20},{"$f":"COLUMN()","v":21},{"$f":"COLUMN()","v":22},{"$f":"COLUMN()","v":23},{"$f":"COLUMN()","v":24},{"$f":"COLUMN()","v":25},{"$f":"COLUMN()","v":26},{"$f":"COLUMN()","v":27},{"$f":"COLUMN()","v":28},{"$f":"COLUMN()","v":29},{"$f":"COLUMN()","v":30},{"$f":"COLUMN()","v":31},{"$f":"COLUMN()","v":32},{"$f":"COLUMN()","v":33},{"$f":"COLUMN()","v":34},{"$f":"COLUMN()","v":35},{"$f":"COLUMN()","v":36},{"$f":"COLUMN()","v":37},{"$f":"COLUMN()","v":38},{"$f":"COLUMN()","v":39},{"$f":"COLUMN()","v":40},{"$f":"COLUMN()","v":41},{"$f":"COLUMN()","v":42},{"$f":"COLUMN()","v":43},{"$f":"COLUMN()","v":44},{"$f":"COLUMN()","v":45},{"$f":"COLUMN()","v":46},{"$f":"COLUMN()","v":47},{"$f":"COLUMN()","v":48},{"$f":"COLUMN()","v":49},{"$f":"COLUMN()","v":50},{"$f":"COLUMN()","v":51},{"$f":"COLUMN()","v":52},{"$f":"COLUMN()","v":53},{"$f":"COLUMN()","v":54},{"$f":"COLUMN()","v":55},{"$f":"COLUMN()","v":56},{"$f":"COLUMN()","v":57},{"$f":"COLUMN()","v":58},{"$f":"COLUMN()","v":59},{"$f":"COLUMN()","v":60},{"$f":"COLUMN()","v":61},{"$f":"COLUMN()","v":62},{"$f":"COLUMN()","v":63},{"$f":"COLUMN()","v":64},{"$f":"COLUMN()","v":65},{"$f":"COLUMN()","v":66},{"$f":"COLUMN()","v":67},{"$f":"COLUMN()","v":68},{"$f":"COLUMN()","v":69},{"$f":"COLUMN()","v":70},{"$f":"COLUMN()","v":71},{"$f":"COLUMN()","v":72},{"$f":"COLUMN()","v":73},{"$f":"COLUMN()","v":74},{"$f":"COLUMN()","v":75},{"$f":"COLUMN()","v":76},{"$f":"COLUMN()","v":77},{"$f":"COLUMN()","v":78},{"$f":"COLUMN()","v":79},{"$f":"COLUMN()","v":80},{"$f":"COLUMN()","v":81},{"$f":"COLUMN()","v":82},{"$f":"COLUMN()","v":83},{"$f":"COLUMN()","v":84},{"$f":"COLUMN()","v":85},{"$f":"COLUMN()","v":86},{"$f":"COLUMN()","v":87},{"$f":"COLUMN()","v":88},{"$f":"COLUMN()","v":89},{"$f":"COLUMN()","v":90},{"$f":"COLUMN()","v":91},{"$f":"COLUMN()","v":92},{"$f":"COLUMN()","v":93},{"$f":"COLUMN()","v":94},{"$f":"COLUMN()","v":95},{"$f":"COLUMN()","v":96},{"$f":"COLUMN()","v":97},{"$f":"COLUMN()","v":98},{"$f":"COLUMN()","v":99},{"$f":"COLUMN()","v":100},{"$f":"COLUMN()","v":101},{"$f":"COLUMN()","v":102},{"$f":"COLUMN()","v":103},{"$f":"COLUMN()","v":104},{"$f":"COLUMN()","v":105},{"$f":"COLUMN()","v":106},{"$f":"COLUMN()","v":107},{"$f":"COLUMN()","v":108},{"$f":"COLUMN()","v":109},{"$f":"COLUMN()","v":110},{"$f":"COLUMN()","v":111},{"$f":"COLUMN()","v":112},{"$f":"COLUMN()","v":113},{"$f":"COLUMN()","v":114}]
["المسلسل","رقم الجلوس","اسم الطالب","تاريخ دخول التلميذ المدرسة",null,"فصل",null,"النوع","تاريج ميلاد الطالب","السن في أول أكتوبر",null,null,"الجنسية","الديانة","حالة قيد الطالب","السري","المادة","أولاَ : مواد تضاف إلى المجموع الكلى",null,null,null,null,null,null,null,null,null,null,null,null,null,null,null,null,null,null,null,null,null,null,null,null,null,null,null,null,null,null,null,null,null,null,null,null,null,null,null,null,null,null,null,null,null,null,"المجموع الكلى","التقدير العام","نشاط مصاحب( 1 )",null,null,"نشاط مصاحب( 2 )",null,null,"المجموع الكلى بالأنشطة","ثانياَ : مواد لا تضاف إلى المجموع الكلى",null,null,null,null,null,null,null,null,null,null,null,null,null,null,null,null,null,null,null,null,null,null,null,null,null,null,null,null,null,null,null,null,null,null,null,null,null,null,"النتيجة"]
[null,null,null,null,null,null,null,null,null,null,null,null,null,null,null,null,null,"اللغة العربية والخط",null,null,null,null,null,null,null,null,"الرياضيات",null,null,null,null,null,null,null,null,"الدراسات الاجتماعية",null,null,null,null,null,null,null,null,"اللغة الأجنبية",null,null,null,null,null,null,null,null,"العلــــــــــــــــــــــــــــــــــــوم",null,null,null,null,null,null,null,null,null,null,null,null,null,null,null,null,null,null,null,"التربية الدينية",null,null,null,null,null,null,null,null,"اللغة الأجنبية الأولى(المستوى الرفيع)",null,null,null,null,null,null,null,null,"اللغة الأجنبية الثانية",null,null,null,null,null,null,null,null,"الأنشطة التربوية",null,null,null,null,null,null,null,null,"أنشطــــــــة لاصفيــــــــة"]
[null,null,null,null,null,null,null,null,null,null,null,null,null,null,null,null,null,null,null,null,null,null,null,null,null,null,null,null,null,null,null,null,null,null,null,null,null,null,null,null,null,null,null,null,null,null,null,null,null,null,null,null,null,"الفصل الدراسي الأول",null,null,null,"الفصل الدراسي الثاني",null,null,null,"مجموع الفصلين الدراسيين","متوسط الفصلين الدراسيين","الدرجة الأصلية",null,null,"الفصل الدراسى الأول","الفصل الدراسى الثانى","المجموع","الفصل الدراسى الأول","الفصل الدراسى الثانى","المجموع",null,null,null,null,null,null,null,null,null,null,"بمدارس اللغات التجريبية والخاصة",null,null,null,null,null,null,null,null,"بمدارس اللغات التجريبية والخاصة",null,null,null,null,null,null,null,null,"الحاســــــــــــب الآلى","المكتبــــــــــــــــــــــة","النشــــــــاط الفنــــــى","النشـــــــاط الموسيقـى","النشـــــــاط الرياضــى","النشــــــــاط العلمــــــى","عملى(زراعى-صناعى-إقتصاد)","الحاســــــــــــب الآلى","الحاســــــــــــب الآلى"]
[null,null,null,null,null,null,null,null,null,null,null,null,null,null,null,null,"توزيع الدرجات","ملف إنجاز الفصل الدراسى الأول","اختبارالفصل الدراسى الأول","المجموع","ملف إنجاز الفصل الدراسى الثانى","اختبارالفصل الدراسى الثانى","المجموع","مجموع الفصلين الدراسيين","متوسط الفصلين الدراسيين","الدرجة الأصلية","ملف إنجاز الفصل الدراسى الأول","اختبارالفصل الدراسى الأول","المجموع","ملف إنجاز الفصل الدراسى الثانى","اختبارالفصل الدراسى الثانى","المجموع","مجموع الفصلين الدراسيين","متوسط الفصلين الدراسيين","الدرجة الأصلية","ملف إنجاز الفصل الدراسى الأول","اختبارالفصل الدراسى الأول","المجموع","ملف إنجاز الفصل الدراسى الثانى","اختبارالفصل الدراسى الثانى","المجموع","مجموع الفصلين الدراسيين","متوسط الفصلين الدراسيين","الدرجة الأصلية","ملف إنجاز الفصل الدراسى الأول","اختبارالفصل الدراسى الأول","المجموع","ملف إنجاز الفصل الدراسى الثانى","اختبارالفصل الدراسى الثانى","المجموع","مجموع الفصلين الدراسيين","متوسط الفصلين الدراسيين","الدرجة الأصلية","ملف إنجاز الفصل الدراسى الأول","اختبار العملى","اختبار التحريرى","المجموع","ملف إنجاز الفصل الدراسى الثانى","اختبار العملى","اختبار التحريرى","المجموع",null,null,null,null,null,null,null,null,null,null,null,null,"ملف إنجاز الفصل الدراسى الأول","اختبارالفصل الدراسى الأول","المجموع","ملف إنجاز الفصل الدراسى الثانى","اختبارالفصل الدراسى الثانى","المجموع","مجموع الفصلين الدراسيين","متوسط الفصلين الدراسيين","الدرجة الأصلية","ملف إنجاز الفصل الدراسى الأول","اختبارالفصل الدراسى الأول","المجموع","ملف إنجاز الفصل الدراسى الثانى","اختبارالفصل الدراسى الثانى","المجموع","مجموع الفصلين الدراسيين","متوسط الفصلين الدراسيين","الدرجة الأصلية","ملف إنجاز الفصل الدراسى الأول","اختبارالفصل الدراسى الأول","المجموع","ملف إنجاز الفصل الدراسى الثانى","اختبارالفصل الدراسى الثانى","المجموع","مجموع الفصلين الدراسيين","متوسط الفصلين الدراسيين","الدرجة الأصلية",null,null,null,null,null,null,null,null,null,null,"الفصل الدراسى الثانى","المجموع",null,null,"الترتيب"]
[null,null,null,null,null,null,null,null,null,"2012-10-01",null,null,null,null,null,null,"النهاية الكبري",50,50,100,50,50,100,200,100,100,50,50,100,50,50,100,200,100,60,50,50,100,50,50,100,200,100,40,50,50,100,50,50,100,200,100,40,50,10,40,100,50,10,40,100,200,100,40,280,null,5,5,10,5,5,10,300,50,50,100,50,50,100,200,100,40,50,50,100,50,50,100,200,100,40,50,50,100,50,50,100,200,100,40,20,20,20,20,20,20,20,27,28,20,10,20]
[null,null,null,null,null,null,null,null,null,"يوم","شهر","سنة",null,null,null,null,"النهاية الصغري",null,null,null,null,15,null,null,null,50,null,null,null,null,15,null,null,null,30,null,null,null,null,15,null,null,null,20,null,null,null,null,15,null,null,null,20,null,null,null,null,null,15,null,null,null,null,20,140,null,null,null,null,null,null,null,null,null,null,null,null,15,null,null,null,20,null,null,null,null,15,null,null,null,20,null,null,null,null,15,null,null,null,16]
[]
[1,2,3,4,5,6,7,8,9,10,11,12,13,14,15,16,17,18,19,20,21,22,23,24,25,26,27,28,29,30,31,32,33,34,35,36,37,38,39,40,41,42,43,44,45,46,47,48,49,50,51,52,53,54,55,56,57,58,59,60,61,62,63,64,65,66,67,68,69,70,71,72,73,74,75,76,77,78,79,80,81,82,83,84,85,86,87,88,89,90,91,92,93,94,95,96,97,98,99,100,101,102,103,104,105,106,107,108,109,110,111,112,113,114,115,116]
[1,70,"شهداء الثوره1",{"$f":"DI13","v":"tr"},null,null,"2/1","ولد","1998-05-05",null,null,null,null,null,null,null,null,null,null,20,null,null,null,null,"ممتاز1",26,null,null,29,null,null,null,null,"جيد1",35,null,null,38,null,null,null,null,"جيد1",44,null,null,47,null,null,null,null,"مقبول1",53,null,null,null,57,null,null,null,null,null,"جيد1",64,65,"ممتاز100",null,null,8,69,null,72,73,null,null,76,null,null,null,null,"جيد1",82,null,null,null,null,null,null,null,null,null,null,null,null,null,null,null,null,null,null,null,null,null,null,null,null,null,null,null,null,null,null,"tr",null,{"$f":"RANK(BU13,$BU$13:$BU$1002)","v":14}]
[2,71,"شهداء الثوره2","tr",null,null,"2/2","ولد","1998-05-06",null,null,null,null,null,null,null,null,null,null,21,null,null,null,null,"ممتاز2",27,null,null,30,null,null,null,null,"جيد2",36,null,null,39,null,null,null,null,"جيد2",45,null,null,48,null,null,null,null,"مقبول2",54,null,null,null,58,null,null,null,null,null,"جيد2",65,66,"ممتاز101",null,null,9,70,null,73,74,null,null,77,null,null,null,null,"جيد2",83,null,null,null,null,null,null,null,null,null,null,null,null,null,null,null,null,null,null,null,null,null,null,null,null,null,null,null,null,null,null,"tr",null,13]
[3,72,"شهداء الثوره3","ناجح",null,null,"2/3","ولد","1998-05-07",null,null,null,null,null,null,null,null,null,null,22,null,null,null,null,"ممتاز3",28,null,null,31,null,null,null,null,"جيد3",37,null,null,40,null,null,null,null,"جيد3",46,null,null,49,null,null,null,null,"مقبول3",55,null,null,null,59,null,null,null,null,null,"جيد3",66,67,"ممتاز102",null,null,10,71,null,74,75,null,null,78,null,null,null,null,"جيد3",84,null,null,null,null,null,null,null,null,null,null,null,null,null,null,null,null,null,null,null,null,null,null,null,null,null,null,null,null,null,null,"ناجح",null,12]
[4,73,"شهداء الثوره4","ناجح",null,null,"2/4","ولد","1998-05-08",null,null,null,null,null,null,null,null,null,null,23,null,null,null,null,"ممتاز4",29,null,null,32,null,null,null,null,"جيد4",38,null,null,41,null,null,null,null,"جيد4",47,null,null,50,null,null,null,null,"مقبول4",56,null,null,null,60,null,null,null,null,null,"جيد4",67,68,"ممتاز103",null,null,11,72,null,75,76,null,null,79,null,null,null,null,"جيد4",85,null,null,null,null,null,null,null,null,null,null,null,null,null,null,null,null,null,null,null,null,null,null,null,null,null,null,null,null,null,null,"ناجح",null,11]
[5,74,"شهداء الثوره5","ناجح",null,null,"2/5","ولد","1998-05-09",null,null,null,null,null,null,null,null,null,null,24,null,null,null,null,"ممتاز5",30,null,null,33,null,null,null,null,"جيد5",39,null,null,42,null,null,null,null,"جيد5",48,null,null,51,null,null,null,null,"مقبول5",57,null,null,null,61,null,null,null,null,null,"جيد5",68,69,"ممتاز104",null,null,12,73,null,76,77,null,null,80,null,null,null,null,"جيد5",86,null,null,null,null,null,null,null,null,null,null,null,null,null,null,null,null,null,null,null,null,null,null,null,null,null,null,null,null,null,null,"ناجح",null,10]
[6,75,"شهداء الثوره6","ناجح",null,null,"2/6","ولد","1998-05-10",null,null,null,null,null,null,null,null,null,null,25,null,null,null,null,"ممتاز6",31,null,null,34,null,null,null,null,"جيد6",40,null,null,43,null,null,null,null,"جيد6",49,null,null,52,null,null,null,null,"مقبول6",58,null,null,null,62,null,null,null,null,null,"جيد6",69,70,"ممتاز105",null,null,13,74,null,77,78,null,null,81,null,null,null,null,"جيد6",87,null,null,null,null,null,null,null,null,null,null,null,null,null,null,null,null,null,null,null,null,null,null,null,null,null,null,null,null,null,null,"ناجح",null,9]
[7,76,"شهداء الثوره7","ناجح",null,null,"2/7","ولد","1998-05-11",null,null,null,null,null,null,null,null,null,null,26,null,null,null,null,"ممتاز7",32,null,null,35,null,null,null,null,"جيد7",41,null,null,44,null,null,null,null,"جيد7",50,null,null,53,null,null,null,null,"مقبول7",59,null,null,null,63,null,null,null,null,null,"جيد7",70,71,"ممتاز106",null,null,14,75,null,78,79,null,null,82,null,null,null,null,"جيد7",88,null,null,null,null,null,null,null,null,null,null,null,null,null,null,null,null,null,null,null,null,null,null,null,null,null,null,null,null,null,null,"ناجح",null,8]
[8,77,"شهداء الثوره8","ناجح",null,null,"2/8","ولد","1998-05-12",null,null,null,null,null,null,null,null,null,null,27,null,null,null,null,"ممتاز8",33,null,null,36,null,null,null,null,"جيد8",42,null,null,45,null,null,null,null,"جيد8",51,null,null,54,null,null,null,null,"مقبول8",60,null,null,null,64,null,null,null,null,null,"جيد8",71,72,"ممتاز107",null,null,15,76,null,79,80,null,null,83,null,null,null,null,"جيد8",89,null,null,null,null,null,null,null,null,null,null,null,null,null,null,null,null,null,null,null,null,null,null,null,null,null,null,null,null,null,null,"ناجح",null,7]
[9,78,"شهداء الثوره9","ناجح",null,null,"2/9","ولد","1998-05-13",null,null,null,null,null,null,null,null,null,null,28,null,null,null,null,"ممتاز9",34,null,null,37,null,null,null,null,"جيد9",43,null,null,46,null,null,null,null,"جيد9",52,null,null,55,null,null,null,null,"مقبول9",61,null,null,null,65,null,null,null,null,null,"جيد9",72,73,"ممتاز108",null,null,16,77,null,80,81,null,null,84,null,null,null,null,"جيد9",90,null,null,null,null,null,null,null,null,null,null,null,null,null,null,null,null,null,null,null,null,null,null,null,null,null,null,null,null,null,null,"ناجح",null,6]
[10,79,"شهداء الثوره10","uyt",null,null,"2/10","ولد","1998-05-14",null,null,null,null,null,null,null,null,null,null,29,null,null,null,null,"ممتاز10",35,null,null,38,null,null,null,null,"جيد10",44,null,null,47,null,null,null,null,"جيد10",53,null,null,56,null,null,null,null,"مقبول10",62,null,null,null,66,null,null,null,null,null,"جيد10",73,74,"ممتاز109",null,null,17,78,null,81,82,null,null,85,null,null,null,null,"جيد10",91,null,null,null,null,null,null,null,null,null,null,null,null,null,null,null,null,null,null,null,null,null,null,null,null,null,null,null,null,null,null,"uyt",null,5]
[11,80,"شهداء الثوره11","دور ثان في",null,null,"2/11","ولد","1998-05-15",null,null,null,null,null,null,null,null,null,null,30,null,null,null,null,"ممتاز11",36,null,null,39,null,null,null,null,"جيد11",45,null,null,48,null,null,null,null,"جيد11",54,null,null,57,null,null,null,null,"مقبول11",63,null,null,null,67,null,null,null,null,null,"جيد11",74,75,"ممتاز110",null,null,18,79,null,82,83,null,null,86,null,null,null,null,"جيد11",92,null,null,null,null,null,null,null,null,null,null,null,null,null,null,null,null,null,null,null,null,null,null,null,null,null,null,null,null,null,null,"دور ثان في",null,4]
[12,81,"شهداء الثوره12","دور ثان في",null,null,"2/12","ولد","1998-05-16",null,null,null,null,null,null,null,null,null,null,31,null,null,null,null,"ممتاز12",37,null,null,40,null,null,null,null,"جيد12",46,null,null,49,null,null,null,null,"جيد12",55,null,null,58,null,null,null,null,"مقبول12",64,null,null,null,68,null,null,null,null,null,"جيد12",75,76,"ممتاز111",null,null,19,80,null,83,84,null,null,87,null,null,null,null,"جيد12",93,null,null,null,null,null,null,null,null,null,null,null,null,null,null,null,null,null,null,null,null,null,null,null,null,null,null,null,null,null,null,"دور ثان في",null,3]
[13,82,"شهداء الثوره13","دور ثان في",null,null,"2/13","ولد","1998-05-17",null,null,null,null,null,null,null,null,null,null,32,null,null,null,null,"ممتاز13",38,null,null,41,null,null,null,null,"جيد13",47,null,null,50,null,null,null,null,"جيد13",56,null,null,59,null,null,null,null,"مقبول13",65,null,null,null,69,null,null,null,null,null,"جيد13",76,77,"ممتاز112",null,null,20,81,null,84,85,null,null,88,null,null,null,null,"جيد13",94,null,null,null,null,null,null,null,null,null,null,null,null,null,null,null,null,null,null,null,null,null,null,null,null,null,null,null,null,null,null,"دور ثان في","عربي - دين",2]
[14,83,"شهداء الثوره14","دور ثان في",null,null,"2/14","ولد","1998-05-18",null,null,null,null,null,null,null,null,null,null,33,null,null,null,null,"ممتاز14",39,null,null,42,null,null,null,null,"جيد14",48,null,null,51,null,null,null,null,"جيد14",57,null,null,60,null,null,null,null,"مقبول14",66,null,null,null,70,null,null,null,null,null,"جيد14",77,78,"ممتاز113",null,null,21,82,null,85,86,null,null,89,null,null,null,null,"جيد14",95,null,null,null,null,null,null,null,null,null,null,null,null,null,null,null,null,null,null,null,null,null,null,null,null,null,null,null,null,null,null,"دور ثان في","عربي - دين",1]

{"sheet":"كشف ناجح","index":1,"n_rows":14,"n_cols":14,"rows_kept":14,"cut":false,"hidden":false,"merged":[[1,6,1,9],[1,1,1,3],[3,4,3,12],[2,1,2,3],[4,13,5,13],[4,2,5,2],[4,1,5,1],[4,12,5,12],[3,1,3,3]]}
[]
[null,"ادارة"]
[null,"مدرسة",null,null,"كشــــف  بأسمـــاء الطلاب الناجحين من العام الدراسي"]
[null,"الصف ..."]
[null,"م","الجلوس","اسم الطالب","اللغه العربيه","الرياضيات","دراسات","لغة انجليزية","علوم","المجموع","تربية دينيه","الحالة","النتيجة","التوقيع"]
[null,null,null,null,100,60,20,20,{"$f":"SUM(E6:H6)","v":200},30,20,20]
[]
[null,1,72,"شهداء الثوره3",28,37,46,55,67,84]
[null,2,73,"شهداء الثوره4",29,38,47,56,68,85]
[null,3,74,"شهداء الثوره5",30,39,48,57,69,86]
[null,4,75,"شهداء الثوره6",31,40,49,58,70,87]
[null,5,76,"شهداء الثوره7",32,41,50,59,71,88]
[null,6,77,"شهداء الثوره8",33,42,51,60,72,89]
[null,7,78,"شهداء الثوره9",34,43,52,61,73,90]